bitfinex-derivatives/quotes_ETHF0:USTF0_20240928
["timestamp","ask_amount","ask_price","bid_price","bid_amount"]
[1727511674571,0.37383,2674.3,2674.2,1.35]
[1727511674979,2.80666109,2674.3,2674.2,1.35]
[1727511675375,3.74125109,2674.3,2674.2,1.35]
[1727511675569,3.74125109,2674.3,2673.7,1.35]
[1727511675570,14.297,2674.3,2673.7,1.35]
[1727511675878,2.31867851,2673.8,2673.7,1.35]
[1727511676377,3.11037851,2673.8,2673.7,1.35]
[1727511676577,1.1656,2673.8,2673.7,1.35]
[1727511676979,4.9056,2673.8,2673.7,1.35]
[1727511677176,0.37392,2673.7,2673.6,1.35]
[1727511677376,6.05662387,2673.7,2673.6,1.35]
[1727511677576,4.11392,2673.7,2673.6,1.35]
[1727511678984,0.37394,2673.6,2673.5,1.35]
[1727511679377,0.7917,2673.8,2673.3,3.2078]
[1727511679378,0.37394,2673.5,2673.3,3.2078]
[1727511679579,0.37394,2673.6,2673.5,1.35]
[1727511681487,0.7917,2673.8,2673.5,1.35]
[1727511681781,0.37393,2673.6,2673.5,1.35]
[1727511682885,0.37395,2673.5,2673.3,3.2078]
[1727511683081,0.37395,2673.5,2673.4,1.35]
[1727511684480,0.37394,2673.6,2673.4,1.35]
[1727511684981,0.37394,2673.5,2673.4,1.35]
[1727511689490,0.37394,2673.6,2673.4,1.35]
[1727511690000,0.7917,2673.8,2673.4,1.35]
[1727511690001,0.37394,2673.5,2673.4,1.35]
[1727511690692,0.37393,2673.6,2673.4,1.35]
[1727511691389,0.37394,2673.5,2673.4,1.35]
[1727511697401,3.07649,2673.8,2673.4,1.35]
[1727511697602,0.37392,2673.7,2673.6,1.35]
[1727511698194,0.37393,2673.6,2673.4,0.4042]
[1727511698399,0.37393,2673.6,2673.5,1.35]
[1727511698805,0.37392,2673.7,2673.5,1.35]
[1727511698997,0.37392,2673.7,2673.6,0.4029]
[1727511704015,1.72392,2673.7,2673.6,0.4029]
[1727511704205,0.37396,2673.4,2673.3,4.945]
[1727511704405,0.37396,2673.4,2673.3,1.7372]
[1727511704715,0.37396,2673.4,2673.3,0.3872]
[1727511705104,0.37395,2673.5,2673.3,0.3872]
[1727511705907,0.37396,2673.4,2673.3,0.3872]
[1727511706407,0.37395,2673.5,2673.3,0.3872]
[1727511706802,0.37396,2673.4,2673.3,0.3872]
[1727511707214,0.37397,2673.3,2673.2,1.35]
[1727511707402,0.37399,2673.2,2673.0,1.7492]
[1727511707607,0.37399,2673.2,2673.0,2.1212]
[1727511707912,1.16698,2673.3,2673.0,2.1212]
[1727511708109,0.793,2673.3,2673.0,2.1212]
[1727511708310,1.16698,2673.3,2673.0,2.1212]
[1727511708708,0.77448,2673.3,2673.2,1.35]
[1727511708909,0.37398,2673.3,2673.2,1.35]
[1727511709313,0.374,2673.1,2673.0,2.1212]
[1727511709503,0.374,2673.1,2673.0,0.372]
[1727511711720,0.37399,2673.2,2673.0,1.722]
[1727511711922,0.374,2673.1,2673.0,0.372]
[1727511712122,0.374,2673.1,2673.0,1.722]
[1727511714521,4.14272,2673.4,2673.0,1.722]
[1727511714522,0.37399,2673.2,2673.0,1.722]
[1727511714826,0.374,2673.1,2673.0,1.722]
[1727511715018,0.37399,2673.2,2673.0,1.722]
[1727511715221,0.374,2673.1,2673.0,1.722]
[1727511715614,0.37397,2673.3,2673.0,2.09601]
[1727511715924,3.58177,2673.4,2673.2,1.35]
[1727511716126,0.37397,2673.3,2673.2,1.35]
[1727511717911,4.65668234,2673.4,2673.2,1.35]
[1727511717912,5.03065234,2673.4,2673.2,1.35]
[1727511718112,0.37397,2673.3,2673.2,1.35]
[1727511718316,1.82285234,2673.3,2673.2,1.35]
[1727511719216,0.37397,2673.3,2673.2,1.35]
[1727511719521,2.31667387,2673.3,2673.2,1.35]
[1727511720427,0.37397,2673.3,2673.2,1.35]
[1727511720921,6.01273314,2673.4,2673.2,1.35]
[1727511721323,0.37397,2673.3,2673.2,1.35]
[1727511721519,2.80494314,2673.3,2673.2,1.35]
[1727511721722,6.01274314,2673.4,2673.2,1.35]
[1727511721924,0.37397,2673.3,2673.2,1.35]
[1727511723522,1.94452043,2673.3,2673.2,1.35]
[1727511723726,1.45839845,2673.3,2673.2,5.46478]
[1727511723921,0.84439845,2673.3,2673.2,11.46478]
[1727511724126,1.94452043,2673.7,2673.2,11.0908]
[1727511724427,2.43097314,2673.8,2673.6,1.35]
[1727511724428,1.94452043,2673.8,2673.6,1.35]
[1727511724627,1.94452043,2673.8,2673.7,0.7672]
[1727511726529,2.31842043,2673.8,2673.7,0.7672]
[1727511727327,1.94452043,2673.8,2673.7,0.7672]
[1727511727523,2.31842043,2673.8,2673.7,0.7672]
[1727511727825,1.94452043,2673.8,2673.7,0.7672]
[1727511728261,0.3739,2673.8,2673.7,0.7672]
[1727511728423,2.31842043,2673.8,2673.7,0.7672]
[1727511729223,0.3739,2673.8,2673.7,0.7672]
[1727511729430,2.31841043,2673.9,2673.7,0.7672]
[1727511731228,2.31841043,2673.9,2673.3,0.3925]
[1727511731229,7.03452043,2673.8,2673.3,0.3925]
[1727511731424,2.69832043,2673.7,2673.3,0.8005]
[1727511731626,2.31846043,2673.6,2673.4,1.35]
[1727511731821,2.72336043,2673.6,2673.4,1.35]
[1727511732330,0.37394,2673.5,2673.4,1.35]
[1727511732519,1.7549,2673.6,2673.2,1.35]
[1727511732720,1.7549,2673.6,2673.1,0.408]
[1727511732721,2.31657449,2673.5,2673.4,1.35]
[1727511732921,2.31656392,2673.5,2673.4,1.35]
[1727511733122,1.94261392,2673.5,2673.4,1.35]
[1727511733324,0.4049,2673.6,2673.4,1.35]
[1727511733520,0.4049,2673.6,2673.5,1.35]
[1727511735028,2.32671392,2673.7,2673.5,1.35]
[1727511735334,2.32901392,2673.8,2673.6,0.3737]
[1727511736129,0.37392,2673.7,2673.6,0.3737]
[1727511737029,2.70292392,2673.8,2673.6,0.3737]
[1727511737232,0.37392,2673.7,2673.6,0.3737]
[1727511737429,2.32901392,2673.8,2673.6,0.3737]
[1727511737937,0.37392,2673.7,2673.6,0.3737]
[1727511741927,2.32901392,2673.8,2673.6,0.3737]
[1727511742132,2.32901392,2673.8,2673.4,0.4053]
[1727511742133,0.37394,2673.6,2673.3,0.3729]
[1727511742431,0.37394,2673.6,2673.3,1.7229]
[1727511742432,0.4086,2673.5,2673.3,1.7229]
[1727511742632,0.8097,2673.5,2673.3,1.7229]
[1727511742933,0.4087,2673.4,2673.3,1.7229]
[1727511743522,0.4087,2673.4,2673.3,0.3729]
[1727511743733,0.4087,2673.4,2673.3,1.7229]
[1727511744530,0.4087,2673.4,2673.3,2.09687]
[1727511745132,0.78266,2673.4,2673.3,1.7229]
[1727511747033,0.78266,2673.4,2673.3,1.35]
[1727511747236,0.78266,2673.4,2673.2,1.35]
[1727511747237,0.37398,2673.3,2673.2,1.35]
[1727511748436,0.78267,2673.4,2673.2,1.35]
[1727511748834,0.4087,2673.4,2673.2,1.72398]
[1727511749136,0.4087,2673.4,2673.3,0.37397]
[1727511749330,0.78266,2673.4,2673.3,0.3714]
[1727511749525,0.78266,2673.4,2673.3,1.7214]
[1727511750342,0.78266,2673.4,2673.3,1.35]
[1727511751341,1.16926,2673.4,2673.3,1.35]
[1727511752844,0.7953,2673.4,2673.3,1.35]
[1727511753036,2.34371392,2673.5,2673.3,1.72396]
[1727511753235,2.34371392,2673.5,2673.4,0.3736]
[1727511753236,0.4011,2673.5,2673.4,0.3736]
[1727511753438,1.94261392,2673.6,2673.4,0.74755]
[1727511753738,1.94261392,2673.6,2673.5,1.35]
[1727511754049,2.72021392,2673.7,2673.5,1.7343]
[1727511754645,1.94261392,2673.8,2673.5,1.7343]
[1727511754847,1.94261392,2673.9,2673.7,1.72392]
[1727511755146,2.69469392,2674.0,2673.7,1.72392]
[1727511755645,2.32081392,2674.0,2673.9,1.35]
[1727511755851,2.69468392,2674.0,2673.9,1.35]
[1727511756045,0.3782,2674.0,2673.9,1.35]
[1727511756249,2.32081392,2674.0,2673.9,1.35]
[1727511757136,0.3782,2674.0,2673.9,1.35]
[1727511757343,2.32081392,2674.0,2673.9,1.35]
[1727511760958,2.69468392,2674.0,2673.9,1.35]
[1727511761642,2.32081392,2674.0,2673.9,1.35]
[1727511763151,2.69468392,2674.0,2673.9,1.35]
[1727511763451,2.32081392,2674.0,2673.9,1.35]
[1727511763851,2.69468392,2674.0,2673.9,1.35]
[1727511764044,2.69559347,2674.0,2673.9,1.35]
[1727511764248,2.69558497,2674.0,2673.9,1.35]
[1727511764444,2.69558497,2674.0,2673.8,1.35]
[1727511764445,0.75207,2674.0,2673.8,1.35]
[1727511764646,0.37391,2673.8,2673.5,3.5921]
[1727511764843,0.75862,2673.7,2673.6,1.35]
[1727511765056,1.15062,2673.7,2673.6,1.35]
[1727511765442,2.72032512,2673.7,2673.6,1.35]
[1727511765647,0.7767,2673.7,2673.6,1.35]
[1727511766146,1.15062,2673.7,2673.6,1.35]
[1727511768160,2.70224512,2673.7,2673.6,1.35]
[1727511768363,0.75862,2673.7,2673.6,1.35]
[1727511768658,2.32832512,2673.7,2673.6,1.35]
[1727511768860,2.70224512,2673.7,2673.6,1.35]
[1727511771550,2.32832512,2673.7,2673.6,1.35]
[1727511771755,0.75862,2673.7,2673.6,1.35]
[1727511772659,2.70224512,2673.7,2673.6,1.35]
[1727511772850,0.75862,2673.7,2673.6,1.35]
[1727511773451,1.94362512,2673.8,2673.7,0.37392]
[1727511773652,2.32182512,2674.0,2673.8,0.3739]
[1727511773852,2.32182512,2674.0,2673.9,2.10539]
[1727511774263,0.3782,2674.0,2673.9,1.7315]
[1727511774460,2.32182512,2674.0,2673.9,1.7315]
[1727511774659,0.3782,2674.0,2673.9,1.7315]
[1727511775256,2.32182512,2674.0,2673.9,1.7315]
[1727511775453,0.3782,2674.0,2673.9,1.7315]
[1727511775965,2.32182512,2674.0,2673.9,1.7315]
[1727511776369,2.69569512,2674.0,2673.8,1.35]
[1727511776570,1.94410577,2673.9,2673.8,1.35]
[1727511776859,1.94410577,2673.9,2673.6,1.72392]
[1727511777070,0.376,2673.8,2673.6,1.72392]
[1727511777260,0.755,2673.8,2673.6,1.72392]
[1727511779071,0.755,2673.8,2673.7,0.37392]
[1727511779370,0.755,2673.8,2673.6,1.72392]
[1727511780472,0.755,2673.8,2673.7,0.37392]
[1727511780769,0.755,2673.8,2673.6,1.72392]
[1727511780963,0.376,2673.8,2673.7,0.37392]
[1727511781663,2.32010577,2673.8,2673.6,1.72392]
[1727511782373,2.32010577,2673.8,2673.7,0.37392]
[1727511782674,2.32010577,2673.8,2673.6,1.72392]
[1727511783568,2.32010577,2673.8,2673.6,4.93172]
[1727511783866,0.376,2673.8,2673.6,4.93172]
[1727511784174,1.45799233,2673.7,2673.6,4.93172]
[1727511784470,1.45799233,2673.7,2673.6,1.72392]
[1727511784764,1.45799233,2673.7,2673.6,4.93172]
[1727511786972,1.45799233,2673.7,2673.6,1.72392]
[1727511787370,1.45799233,2673.7,2673.6,4.93172]
[1727511787966,1.83399233,2673.8,2673.6,5.30812]
[1727511788272,1.83399233,2673.8,2673.7,0.37392]
[1727511788474,1.45807049,2673.8,2673.7,0.37392]
[1727511788668,2.31799577,2673.9,2673.7,0.75642]
[1727511788972,2.31799577,2673.9,2673.7,2.10642]
[1727511790173,1.45812211,2673.8,2673.7,1.7325]
[1727511790475,1.94410577,2673.9,2673.7,2.1064]
[1727511791076,1.94410577,2673.9,2673.7,1.7325]
[1727511791471,1.94410577,2673.9,2673.7,2.10641]
[1727511792479,1.94410577,2673.8,2673.7,2.10641]
[1727511794077,0.97251856,2674.0,2673.9,0.37389]
[1727511794271,0.97251856,2674.0,2673.9,4.93169]
[1727511794466,0.97251856,2674.0,2673.9,8.67169]
[1727511794672,0.97251856,2674.0,2673.9,9.07369]
[1727511795483,0.97251856,2674.1,2674.0,0.37387]
[1727511795678,1.4587829,2674.3,2674.0,5.0737]
[1727511795871,0.97252583,2674.2,2674.1,0.37386]
[1727511796179,0.97252583,2674.2,2674.1,5.31926]
[1727511796379,0.97252583,2674.3,2674.2,0.37385]
[1727511796973,0.97252583,2674.3,2674.1,5.8984]
[1727511796974,0.37385,2674.2,2674.1,5.8984]
[1727511797172,0.37385,2674.2,2674.1,5.88466]
[1727511797173,1.36922583,2674.2,2674.1,5.88466]
[1727511799387,1.36922583,2674.2,2674.1,4.93166]
[1727511800284,0.3967,2674.2,2674.1,4.93166]
[1727511801781,0.97252583,2674.3,2674.2,0.37385]
[1727511802277,1.4587829,2674.4,2674.3,0.37383]
[1727511802278,0.97252583,2674.4,2674.3,0.37383]
[1727511802581,0.97252583,2674.4,2674.3,5.46303]
[1727511802784,0.97252583,2674.7,2674.6,0.37379]
[1727511802992,0.97252583,2674.7,2674.6,3.58159]
[1727511803285,0.97252583,2674.8,2674.7,0.37378]
[1727511803487,0.97252583,2674.8,2674.7,1.72378]
[1727511804494,0.07082585,2674.8,2674.7,13.34963]
[1727511804786,2.2813829,2675.5,2675.3,0.37368]
[1727511804989,1.84558147,2675.5,2675.4,1.35]
[1727511805282,0.3886,2675.5,2675.4,1.35]
[1727511808186,0.3886,2675.5,2675.4,2.92]
[1727511809593,0.3886,2675.5,2675.4,3.29368]
[1727511810487,0.3886,2675.5,2675.4,2.92]
[1727511810692,0.3886,2675.5,2675.4,3.29368]
[1727511811186,0.76226,2675.5,2675.4,2.92]
[1727511812886,0.3886,2675.5,2675.4,3.29368]
[1727511814499,0.3886,2675.5,2675.4,2.92]
[1727511815193,0.3886,2675.5,2675.4,3.29368]
[1727511815896,0.3886,2675.5,2675.3,6.1278]
[1727511816094,0.93424,2675.3,2674.7,4.24577]
[1727511816298,0.37376,2674.8,2674.6,0.952]
[1727511816598,1.13008,2674.7,2674.6,0.952]
[1727511816795,1.13008,2674.7,2674.3,0.37382]
[1727511816796,0.37381,2674.5,2674.3,0.37382]
[1727511816998,0.37381,2674.5,2674.4,3.2078]
[1727511816999,0.3738,2674.5,2674.4,3.2078]
[1727511817192,0.3963,2674.6,2674.1,4.1598]
[1727511817393,0.37384,2674.3,2674.1,4.53365]
[1727511817588,0.38,2674.2,2674.1,3.58165]
[1727511824706,0.3763,2674.7,2674.1,3.58165]
[1727511824707,0.3763,2674.7,2674.6,0.37379]
[1727511828306,0.3763,2674.7,2674.5,6.1278]
[1727511828708,0.3763,2674.7,2674.5,6.5016]
[1727511829007,0.3763,2674.7,2674.6,0.37379]
[1727511830403,0.3763,2674.7,2674.5,6.1278]
[1727511831305,0.75008,2674.7,2674.5,6.5016]
[1727511831807,0.3763,2674.7,2674.6,0.37379]
[1727511832006,0.75008,2674.7,2674.6,0.37379]
[1727511832598,0.75008,2674.7,2674.6,3.58159]
[1727511832908,0.3763,2674.7,2674.6,3.58159]
[1727511833506,0.3763,2674.7,2674.6,3.2078]
[1727511833507,0.75008,2674.7,2674.6,3.2078]
[1727511833805,0.3763,2674.7,2674.4,2.92]
[1727511834006,0.3738,2674.5,2674.4,2.92]
[1727511834199,0.37382,2674.4,2674.3,3.2078]
[1727511834403,0.37387,2674.0,2673.9,2.92]
[1727511834606,0.37387,2674.0,2673.9,6.1278]
[1727511834913,0.37387,2674.0,2673.9,2.92]
[1727511835208,0.37387,2674.0,2673.9,3.29389]
[1727511835513,6.36353147,2674.4,2673.9,6.50169]
[1727511835912,0.37387,2674.1,2673.9,6.50169]
[1727511836113,0.3822,2674.0,2673.9,6.50169]
[1727511836607,0.75607,2674.0,2673.9,6.1278]
[1727511837409,0.75607,2674.0,2673.9,2.92]
[1727511837604,0.3822,2674.0,2673.9,3.29389]
[1727511837912,0.75607,2674.0,2673.9,2.92]
[1727511838607,0.3822,2674.0,2673.9,3.29389]
[1727511844811,0.75607,2674.0,2673.9,2.92]
[1727511845511,0.37389,2673.9,2673.8,3.2078]
[1727511845716,1.17149,2673.9,2673.8,3.2078]
[1727511846616,1.17149,2673.9,2673.4,3.2078]
[1727511846617,14.68013,2673.9,2673.4,3.2078]
[1727511846822,0.37395,2673.5,2673.3,0.37397]
[1727511847020,0.7759,2673.4,2673.3,0.37397]
[1727511847923,0.7759,2673.4,2673.3,3.58177]
[1727511848110,0.7759,2673.4,2673.3,0.37397]
[1727511848314,0.7759,2673.4,2673.3,3.58177]
[1727511850411,0.3691,2673.4,2673.3,3.58177]
[1727511850613,0.37392,2673.7,2673.3,3.2078]
[1727511850831,0.37393,2673.6,2673.5,2.92]
[1727511852318,0.37392,2673.7,2673.5,2.92]
[1727511852922,1.15081,2673.8,2673.5,2.92]
[1727511853225,0.7769,2673.8,2673.5,2.92]
[1727511853514,0.37392,2673.7,2673.5,2.92]
[1727511854119,0.7769,2673.8,2673.3,6.1278]
[1727511854321,0.7769,2673.8,2673.3,6.50177]
[1727511854618,0.37394,2673.5,2673.3,6.1278]
[1727511854816,0.3816,2673.4,2673.3,2.92]
[1727511855019,0.3816,2673.4,2673.0,6.1278]
[1727511855212,0.3827,2673.3,2673.1,0.37399]
[1727511855816,0.75667,2673.3,2673.0,6.5018]
[1727511856017,0.3827,2673.3,2673.1,0.374]
[1727511856221,0.75667,2673.3,2673.0,6.5018]
[1727511856723,0.75667,2673.3,2673.1,0.374]
[1727511857122,0.3827,2673.3,2673.1,0.374]
[1727511857322,0.3827,2673.3,2673.2,0.37398]
[1727511859725,0.3827,2673.3,2673.1,0.37399]
[1727511859922,0.75668,2673.3,2673.1,0.37399]
[1727511860620,0.37398,2673.2,2673.0,6.5018]
[1727511861023,0.74228,2673.2,2673.0,6.5018]
[1727511861217,0.74228,2673.2,2673.1,0.374]
[1727511861218,0.3683,2673.2,2673.1,0.374]
[1727511861620,0.74228,2673.2,2673.1,0.374]
[1727511861921,0.3683,2673.2,2673.1,0.374]
[1727511864222,0.74228,2673.2,2673.1,0.374]
[1727511864617,0.3683,2673.2,2673.1,0.374]
[1727511867820,0.74228,2673.2,2673.1,0.374]
[1727511868020,0.74228,2673.2,2673.0,2.92]
[1727511868021,0.74228,2673.2,2673.0,3.29401]
[1727511869923,0.3683,2673.2,2673.1,0.374]
[1727511870322,0.74228,2673.2,2673.1,1.35]
[1727511870930,0.3683,2673.2,2673.1,1.724]
[1727511871130,0.74228,2673.2,2673.1,1.35]
[1727511871735,0.3683,2673.2,2673.1,1.724]
[1727511872638,0.74228,2673.2,2673.1,1.35]
[1727511873728,0.3683,2673.2,2673.1,1.724]
[1727511873929,0.74228,2673.2,2673.1,1.35]
[1727511874627,0.3683,2673.2,2673.1,1.35]
[1727511874932,0.3683,2673.2,2673.1,1.724]
[1727511875936,0.74228,2673.2,2673.1,1.35]
[1727511876132,0.3683,2673.2,2673.1,1.35]
[1727511876430,0.74228,2673.2,2673.1,1.35]
[1727511880233,2.19926147,2673.2,2673.1,1.35]
[1727511885344,0.74228,2673.2,2673.1,1.35]
[1727511887850,0.74229,2673.2,2673.0,0.37401]
[1727511888051,1.45744844,2673.1,2673.0,1.72401]
[1727511889044,1.83144844,2673.1,2673.0,1.35]
[1727511890244,2.68639577,2673.2,2673.0,1.72401]
[1727511891155,1.94410577,2673.1,2673.0,1.72401]
[1727511893152,1.94410577,2673.1,2672.9,3.949]
[1727511893153,2.31810577,2673.1,2672.9,5.67302]
[1727511893457,0.3905,2673.0,2672.9,5.67302]
[1727511894857,2.33460577,2673.0,2672.9,5.67302]
[1727511895054,0.3905,2673.0,2672.9,5.67302]
[1727511895247,2.33460577,2673.0,2672.9,5.67302]
[1727511898544,2.70861577,2673.0,2672.9,3.2078]
[1727511898757,3.57278314,2673.0,2672.9,3.2078]
[1727511898951,1.14181,2673.0,2672.9,3.2078]
[1727511899151,3.57278314,2673.0,2672.9,3.2078]
[1727511902352,0.37405,2672.8,2672.6,2.70288621]
[1727511902549,2.3213741,2672.8,2672.6,2.70288621]
[1727511902748,2.3213741,2672.7,2672.6,1.35]
[1727511902952,0.37407,2672.6,2672.5,3.2078]
[1727511903146,2.51937,2672.6,2672.5,3.2078]
[1727511903347,4.95108997,2672.6,2672.5,3.2078]
[1727511903849,2.51937,2672.6,2672.5,3.2078]
[1727511904048,4.95111958,2672.6,2672.5,3.2078]
[1727511904852,3.60111958,2672.6,2672.5,3.2078]
[1727511905846,4.95111958,2672.6,2672.5,3.2078]
[1727511906055,2.51937,2672.6,2672.5,3.2078]
[1727511906246,5.88448431,2672.6,2672.5,3.2078]
[1727511906453,16.02988,2672.6,2672.0,3.58195]
[1727511906663,1.45736525,2672.1,2671.9,3.58196]
[1727511906855,2.23446525,2672.0,2671.9,3.58197]
[1727511907056,2.64056525,2672.0,2671.8,1.72417]
[1727511907361,3.01471525,2672.0,2671.7,2.93339]
[1727511907555,2.64056525,2672.0,2671.8,0.37418]
[1727511907760,1.45736525,2671.9,2671.8,0.37418]
[1727511908060,2.64056525,2672.0,2671.8,0.37418]
[1727511908955,2.64056525,2672.0,2671.9,0.37417]
[1727511909155,2.64056525,2672.0,2671.9,3.58197]
[1727511909156,1.1832,2672.0,2671.9,3.58197]
[1727511911658,1.1832,2672.0,2671.9,0.37417]
[1727511911854,1.1832,2672.0,2671.9,3.58197]
[1727511912455,1.1832,2672.0,2671.9,3.2078]
[1727511912658,1.1832,2672.0,2671.8,1.72417]
[1727511913562,1.1832,2672.0,2671.8,1.35]
[1727511914466,1.1832,2672.0,2671.9,0.37417]
[1727511915253,1.1832,2672.0,2671.9,3.58197]
[1727511915859,1.1832,2672.0,2671.9,0.37417]
[1727511916879,0.37413,2672.2,2671.9,0.37417]
[1727511917078,0.76443,2672.2,2671.9,3.58197]
[1727511917661,0.37415,2672.1,2671.9,3.2078]
[1727511917978,0.37415,2672.1,2671.8,0.37417]
[1727511917979,0.7655,2672.0,2671.8,0.37417]
[1727511918859,0.7655,2672.0,2671.9,0.37417]
[1727511919060,0.7655,2672.0,2671.8,0.37417]
[1727511919272,0.7655,2672.0,2671.7,1.7528]
[1727511919460,0.7655,2672.0,2671.8,0.37418]
[1727511920264,0.7655,2672.0,2671.9,0.37417]
[1727511922772,0.7655,2672.0,2671.9,3.58197]
[1727511923072,0.7655,2672.0,2671.9,0.37417]
[1727511923966,0.7655,2672.0,2671.9,3.58197]
[1727511924164,0.7655,2672.0,2671.9,0.37417]
[1727511928469,1.35829453,2672.2,2671.8,1.35]
[1727511928674,0.96799453,2672.4,2672.1,1.35]
[1727511928874,0.96799453,2672.6,2672.5,0.37408]
[1727511929075,1.34205453,2672.7,2672.5,1.72408]
[1727511929277,1.34205453,2672.7,2672.5,2.10158]
[1727511929471,0.37406,2672.7,2672.5,1.7275]
[1727511930173,1.34205453,2672.7,2672.5,1.7275]
[1727511930368,1.34205453,2672.7,2672.5,0.3775]
[1727511932877,1.34205453,2672.7,2672.6,0.37407]
[1727511932878,0.96799453,2672.7,2672.6,0.37407]
[1727511933084,1.34202453,2672.9,2672.6,4.1482]
[1727511933379,0.37403,2672.9,2672.6,1.15906]
[1727511933774,0.37403,2672.9,2672.3,3.2078]
[1727511933775,0.37408,2672.6,2672.3,3.5819]
[1727511933976,0.785,2672.5,2672.3,3.5819]
[1727511934174,0.785,2672.5,2672.4,0.3741]
[1727511934575,0.785,2672.5,2672.4,1.7241]
[1727511934971,0.3933,2672.5,2672.4,1.7241]
[1727511937568,0.96799453,2672.6,2672.5,0.37408]
[1727511937769,0.96799453,2672.8,2672.5,5.0916]
[1727511937984,4.95539453,2673.1,2672.7,4.5578]
[1727511938174,4.95539453,2673.1,2673.0,0.37401]
[1727511938375,5.32939453,2673.1,2673.0,0.37401]
[1727511938976,5.32939453,2673.1,2672.9,1.72402]
[1727511938977,3.9874,2673.1,2672.9,1.72402]
[1727511939175,5.33076749,2673.1,2672.9,1.72402]
[1727511939382,5.33076749,2673.1,2673.0,0.37401]
[1727511939586,5.33076749,2673.1,2672.9,1.72402]
[1727511939771,0.37401,2673.0,2672.9,1.72402]
[1727511939974,1.34336749,2673.0,2672.9,1.72402]
[1727511940175,0.96935749,2673.0,2672.9,1.72402]
[1727511940477,4.95675749,2673.1,2672.9,1.72402]
[1727511940678,0.96935749,2673.0,2672.9,1.72402]
[1727511941687,0.96935749,2673.0,2672.9,0.37403]
[1727511942281,2.12296749,2673.1,2672.9,0.37403]
[1727511942597,0.96935749,2673.0,2672.9,0.37403]
[1727511942978,1.34336749,2673.0,2672.9,0.37403]
[1727511943583,0.96935749,2673.0,2672.9,0.37403]
[1727511945385,2.12296749,2673.1,2672.9,0.37403]
[1727511945881,0.96935749,2673.0,2672.9,0.37403]
[1727511946083,2.12296749,2673.1,2672.9,0.37403]
[1727511947383,2.12296749,2673.1,2672.8,5.7323]
[1727511947697,2.12296749,2673.1,2672.9,0.37402]
[1727511948290,0.37401,2673.0,2672.8,5.33603]
[1727511948489,0.37401,2673.0,2672.8,3.58183]
[1727511948687,0.37403,2672.9,2672.8,3.58183]
[1727511948893,1.72403,2672.9,2672.8,3.2078]
[1727511949080,2.69338749,2672.9,2672.8,3.2078]
[1727511949285,5.46563,2672.9,2672.8,3.2078]
[1727511949687,7.40878367,2672.9,2672.8,3.2078]
[1727511950184,5.46563,2672.9,2672.8,3.2078]
[1727511952195,0.37406,2672.7,2672.5,0.37408]
[1727511952495,0.96923462,2672.7,2672.6,0.37407]
[1727511952896,1.72538462,2672.7,2672.5,0.37407]
[1727511953190,1.72538462,2672.7,2672.6,0.37407]
[1727511953191,1.35133462,2672.7,2672.6,0.37407]
[1727511953387,1.35133462,2672.7,2672.5,3.2078]
[1727511953388,0.3821,2672.7,2672.5,3.2078]
[1727511953594,0.75615,2672.7,2672.5,3.58187]
[1727511953892,1.72538462,2672.7,2672.5,3.58187]
[1727511954682,1.35133462,2672.7,2672.5,3.2078]
[1727511954886,1.72539462,2672.7,2672.5,3.58188]
[1727511955098,1.36433462,2672.8,2672.7,0.37405]
[1727511955495,0.3951,2672.8,2672.7,1.72405]
[1727511955995,0.3951,2672.8,2672.7,0.37405]
[1727511956188,1.36433462,2672.8,2672.7,0.37405]
[1727511960301,1.36433462,2672.8,2672.7,1.72405]
[1727511960595,0.3951,2672.8,2672.7,1.72405]
[1727511960791,0.96923462,2672.9,2672.7,1.72405]
[1727511960996,1.34326462,2672.9,2672.7,1.72405]
[1727511961198,0.37404,2672.8,2672.7,1.35]
[1727511961395,0.37404,2672.8,2672.6,0.77026]
[1727511961396,0.37404,2672.8,2672.6,2.12026]
[1727511961603,1.34327462,2672.8,2672.6,2.12026]
[1727511961898,1.34327462,2672.8,2672.7,0.37405]
[1727511962202,1.34327462,2672.8,2672.6,2.12026]
[1727511962805,0.96923462,2672.8,2672.6,1.7462]
[1727511963296,1.34328462,2672.8,2672.6,2.12026]
[1727511964004,0.96923462,2672.8,2672.7,0.37405]
[1727511964201,0.96923462,2672.8,2672.6,2.12026]
[1727511964395,1.34327462,2672.8,2672.6,2.12026]
[1727511965595,0.96923462,2672.7,2672.6,2.12026]
[1727511966721,0.96923462,2672.8,2672.7,0.37405]
[1727511967202,0.96923462,2672.8,2672.6,1.7462]
[1727511967203,0.37404,2672.8,2672.6,2.12026]
[1727511967502,0.97005713,2672.7,2672.6,2.12026]
[1727511969606,1.82789194,2672.8,2672.6,2.12026]
[1727511970501,0.37405,2672.7,2672.6,1.35]
[1727511970699,1.45385194,2672.7,2672.6,1.35]
[1727511971001,1.45385194,2672.7,2672.6,1.72407]
[1727511973406,2.31720367,2672.8,2672.6,1.72407]
[1727511974100,2.42894209,2672.9,2672.7,0.37405]
[1727511974101,2.31718367,2672.9,2672.7,0.37405]
[1727511974308,2.31720367,2672.8,2672.6,1.72406]
[1727511974605,1.94315367,2672.7,2672.6,1.72406]
[1727511977306,2.31720367,2672.8,2672.7,0.37405]
[1727511978108,0.37405,2672.8,2672.7,0.37405]
[1727511978303,2.42894209,2672.9,2672.7,0.37405]
[1727511978609,2.31833212,2672.8,2672.7,0.37405]
[1727511978803,1.94429212,2672.8,2672.7,0.37405]
[1727511979107,1.94429212,2672.8,2672.7,1.72405]